Workbook

Sheet Chi phí dự kiến
B2: BIỂU MẪU SỐ 04/ĐGTĐ-SCM. TÍNH CHI PHÍ TUÂN THỦ THỦ TỤC HÀNH CHÍNH TRONG DỰ ÁN, DỰ THẢO VĂN BẢN
B5: BỘ CÔNG AN | I5: Biểu mẫu 04/ĐGTĐ-SCM
A8: CHI PHÍ TUÂN THỦ THỦ TỤC HÀNH CHÍNH TRONG DỰ ÁN, DỰ THẢO
A10: TÊN DỰ THẢO VĂN BẢN: LUẬT AN NINH DỮ LIỆU
A12: THỦ TỤC HÀNH CHÍNH 1: Thẩm định, cấp phép hệ thống, công nghệ và dịch vụ dữ liệu trước khi triển khai
A13: 1.a | B13: (Đăng ký, khai báo Danh mục dữ liệu quốc gia)
A14: I. | B14: CHI PHÍ THỰC HIỆN TTHC DỰ KIẾN BAN HÀNH MỚI
A16: STT | B16: Các công việc khi thực hiện TTHC | C16: Các hoạt động/ cách thức thực hiện cụ thể | D16: Thời gian thực hiện (giờ) | E16: Mức TNBQ/ 01 giờ làm việc (đồng) | F16: Mức chi phí thuê tư vấn, dịch vụ (đồng) | G16: Mức phí, lệ phí, chi phí khác (đồng) | H16: Số lần thực hiện/ 01 năm | I16: Số lượng đối tượng tuân thủ/01 năm | J16: Chi phí thực hiện TTHC (đồng) | K16: Tổng chi phí thực hiện TTHC/ 01 năm (đồng) | L16: Ghi chú
A17: 1 | B17: Chuẩn bị hồ sơ
B18: Cơ quan, tổ chức, cá nhân xử lý dữ liệu thuộc Danh mục kiểm kê, phân loại và khai báo với Bộ Công an | C18: Chuẩn bị hồ sơ | D18: 4 | E18: 58228 | G18: 0 | H18: 1 | I18: 5000 | J18: =G18+F18+(D18*E18) -> 232912 | K18: =J18*I18*H18 -> 1164560000
A19: 2 | B19: Nộp hồ sơ | C19: Trực tiếp | D19: 0.5 | E19: 58228 | G19: 0 | H19: 1 | I19: 5000 | J19: 29114 | K19: 145570000
C20: Bưu chính | D20: 0 | E20: 58228 | G20: 0 | H20: 1 | I20: 0 | J20: 0 | K20: 0
C21: Điện tử | D21: 0.25 | E21: 58228 | G21: 0 | H21: 1 | I21: 5000 | J21: 14557 | K21: 72785000
A22: 3 | B22: Nộp phí, lệ phí, chi phí khác | E22: 58228 | G22: 0 | H22: 1 | I22: 5000 | J22: 0 | K22: 0
A23: 3.1 | B23: Phí | D23: 0 | E23: 58228 | G23: 0 | H23: 1 | I23: 5000 | J23: 0 | K23: 0
A24: 3.2 | B24: Lệ phí | D24: 0 | E24: 58228 | G24: 0 | H24: 1 | I24: 5000 | J24: 0 | K24: 0
A25: 3.3 | B25: Chi phí khác | D25: 0 | E25: 58228 | G25: 0 | H25: 1 | I25: 5000 | J25: 0 | K25: 0
A26: 4 | B26: Chuẩn bị, phục vụ việc kiểm tra, đánh giá của cơ quan có thẩm quyền (nếu có) | D26: 0 | E26: 58228 | G26: 0 | H26: 1 | I26: 5000 | J26: 0 | K26: 0
A27: 5 | B27: Công việc khác (nếu có) | D27: 0 | E27: 58228 | G27: 0 | H27: 1 | I27: 5000 | J27: 0 | K27: 0
A28: 6 | B28: Nhận kết quả | C28: Trực tiếp | D28: 0 | E28: 58228 | G28: 0 | H28: 1 | I28: 5000 | J28: 0 | K28: 0
C29: Bưu chính | D29: 0 | E29: 58228 | G29: 0 | H29: 1 | I29: 0 | J29: 0 | K29: 0
C30: Điện tử | D30: 0.1 | E30: 58228 | G30: 0 | H30: 1 | I30: 5000 | J30: 5822.8 | K30: 29114000
B31: TỔNG 1.a | F31: =SUM(F17:F27) -> 0 | G31: =SUM(G17:G27) -> 0 | J31: =SUM(J17:J30) -> 282405.8 | K31: =SUM(K17:K30) -> 1412029000
A32: Ghi chú giả định số liệu: Doanh nghiệp siêu nhỏ, nhỏ và vừa không xử lý dữ liệu quy mô lớn được miễn trừ theo Điều 13 (Khoản 3) của dự thảo Luật.
A34: 1.b | B34: (Thẩm định an ninh hệ thống, hoạt động đầu tư và chuyển giao công nghệ)
A35: I. | B35: CHI PHÍ THỰC HIỆN TTHC DỰ KIẾN BAN HÀNH MỚI
A37: STT | B37: Các công việc khi thực hiện TTHC | C37: Các hoạt động/ cách thức thực hiện cụ thể | D37: Thời gian thực hiện (giờ) | E37: Mức TNBQ/ 01 giờ làm việc (đồng) | F37: Mức chi phí thuê tư vấn, dịch vụ (đồng) | G37: Mức phí, lệ phí, chi phí khác (đồng) | H37: Số lần thực hiện/ 01 năm | I37: Số lượng đối tượng tuân thủ/01 năm | J37: Chi phí thực hiện TTHC (đồng) | K37: Tổng chi phí thực hiện TTHC/ 01 năm (đồng) | L37: Ghi chú
A38: 1 | B38: Chuẩn bị hồ sơ
B39: Chủ đầu tư lập hồ sơ mô tả hệ thống, phương án bảo đảm an ninh, tài liệu kỹ thuật dự án đầu tư, chuyển giao công nghệ | C39: Chuẩn bị hồ sơ | D39: 32 | E39: 58228 | F39: 8000000 | G39: 0 | H39: 1 | I39: 800 | J39: =G39+F39+(D39*E39) -> 9863296 | K39: =J39*I39*H39 -> 7890636800
A40: 2 | B40: Nộp hồ sơ | C40: Trực tiếp | D40: 0.5 | E40: 58228 | G40: 0 | H40: 1 | I40: 800 | J40: 29114 | K40: 23291200
C41: Bưu chính | D41: 0 | E41: 58228 | G41: 0 | H41: 1 | I41: 0 | J41: 0 | K41: 0
C42: Điện tử | D42: 0.25 | E42: 58228 | G42: 0 | H42: 1 | I42: 800 | J42: 14557 | K42: 11645600
A43: 3 | B43: Nộp phí, lệ phí, chi phí khác | E43: 58228 | G43: 0 | H43: 1 | I43: 800 | J43: 0 | K43: 0
A44: 3.1 | B44: Phí | D44: 0 | E44: 58228 | G44: 0 | H44: 1 | I44: 800 | J44: 0 | K44: 0
A45: 3.2 | B45: Lệ phí | D45: 0 | E45: 58228 | G45: 0 | H45: 1 | I45: 800 | J45: 0 | K45: 0
A46: 3.3 | B46: Chi phí khác | D46: 0 | E46: 58228 | G46: 0 | H46: 1 | I46: 800 | J46: 0 | K46: 0
A47: 4 | B47: Chuẩn bị, phục vụ việc kiểm tra, đánh giá của cơ quan có thẩm quyền (nếu có) | D47: 0 | E47: 58228 | G47: 0 | H47: 1 | I47: 800 | J47: 0 | K47: 0
A48: 5 | B48: Công việc khác (nếu có) | D48: 0 | E48: 58228 | G48: 0 | H48: 1 | I48: 800 | J48: 0 | K48: 0
A49: 6 | B49: Nhận kết quả | C49: Trực tiếp | D49: 2 | E49: 58228 | G49: 0 | H49: 1 | I49: 800 | J49: 116456 | K49: 93164800
C50: Bưu chính | D50: 0 | E50: 58228 | G50: 0 | H50: 1 | I50: 0 | J50: 0 | K50: 0
C51: Điện tử | D51: 0.1 | E51: 58228 | G51: 0 | H51: 1 | I51: 800 | J51: 5822.8 | K51: 4658240
B52: TỔNG 1.b | F52: =SUM(F38:F48) -> 8000000 | G52: =SUM(G38:G48) -> 0 | J52: =SUM(J38:J51) -> 10029245.8 | K52: =SUM(K38:K51) -> 8023396640
A53: Ghi chú giả định số liệu: Đã tính chi phí thuê tư vấn kỹ thuật, pháp lý chuẩn bị hồ sơ khoảng 8.000.000 đồng/hồ sơ; áp dụng cơ chế thẩm định kép liên thông với an ninh mạng theo Điều 14 để giảm trùng lặp.
A55: 1.c | B55: (Đăng ký hoạt động môi giới, cung cấp sàn giao dịch dữ liệu)
A56: I. | B56: CHI PHÍ THỰC HIỆN TTHC DỰ KIẾN BAN HÀNH MỚI
A58: STT | B58: Các công việc khi thực hiện TTHC | C58: Các hoạt động/ cách thức thực hiện cụ thể | D58: Thời gian thực hiện (giờ) | E58: Mức TNBQ/ 01 giờ làm việc (đồng) | F58: Mức chi phí thuê tư vấn, dịch vụ (đồng) | G58: Mức phí, lệ phí, chi phí khác (đồng) | H58: Số lần thực hiện/ 01 năm | I58: Số lượng đối tượng tuân thủ/01 năm | J58: Chi phí thực hiện TTHC (đồng) | K58: Tổng chi phí thực hiện TTHC/ 01 năm (đồng) | L58: Ghi chú
A59: 1 | B59: Chuẩn bị hồ sơ
B60: Tổ chức chuẩn bị hồ sơ đăng ký, phương án bảo đảm an ninh hệ thống sàn giao dịch | C60: Chuẩn bị hồ sơ | D60: 24 | E60: 58228 | F60: 3000000 | G60: 0 | H60: 1 | I60: 50 | J60: =G60+F60+(D60*E60) -> 4397472 | K60: =J60*I60*H60 -> 219873600
A61: 2 | B61: Nộp hồ sơ | C61: Trực tiếp | D61: 0.5 | E61: 58228 | G61: 0 | H61: 1 | I61: 50 | J61: 29114 | K61: 1455700
C62: Bưu chính | D62: 0 | E62: 58228 | G62: 0 | H62: 1 | I62: 0 | J62: 0 | K62: 0
C63: Điện tử | D63: 0.25 | E63: 58228 | G63: 0 | H63: 1 | I63: 50 | J63: 14557 | K63: 727850
A64: 3 | B64: Nộp phí, lệ phí, chi phí khác | E64: 58228 | G64: 0 | H64: 1 | I64: 50 | J64: 0 | K64: 0
A65: 3.1 | B65: Phí | D65: 0 | E65: 58228 | G65: 0 | H65: 1 | I65: 50 | J65: 0 | K65: 0
A66: 3.2 | B66: Lệ phí | D66: 0 | E66: 58228 | G66: 0 | H66: 1 | I66: 50 | J66: 0 | K66: 0
A67: 3.3 | B67: Chi phí khác | D67: 0 | E67: 58228 | G67: 0 | H67: 1 | I67: 50 | J67: 0 | K67: 0
A68: 4 | B68: Chuẩn bị, phục vụ việc kiểm tra, đánh giá của cơ quan có thẩm quyền (nếu có) | D68: 0 | E68: 58228 | G68: 0 | H68: 1 | I68: 50 | J68: 0 | K68: 0
A69: 5 | B69: Công việc khác (nếu có) | D69: 0 | E69: 58228 | G69: 0 | H69: 1 | I69: 50 | J69: 0 | K69: 0
A70: 6 | B70: Nhận kết quả | C70: Trực tiếp | D70: 1 | E70: 58228 | G70: 0 | H70: 1 | I70: 50 | J70: 58228 | K70: 2911400
C71: Bưu chính | D71: 0 | E71: 58228 | G71: 0 | H71: 1 | I71: 0 | J71: 0 | K71: 0
C72: Điện tử | D72: 0.1 | E72: 58228 | G72: 0 | H72: 1 | I72: 50 | J72: 5822.8 | K72: 291140
B73: TỔNG 1.c | F73: =SUM(F59:F69) -> 3000000 | G73: =SUM(G59:G69) -> 0 | J73: =SUM(J59:J72) -> 4505193.8 | K73: =SUM(K59:K72) -> 225259690
A74: Ghi chú giả định số liệu: Đã tính chi phí thuê tư vấn xây dựng phương án an ninh hệ thống khoảng 3.000.000 đồng/hồ sơ.
A76: 1.d | B76: (Cấp Giấy chứng nhận đủ điều kiện an ninh, trật tự kinh doanh dịch vụ dữ liệu)
A77: I. | B77: CHI PHÍ THỰC HIỆN TTHC DỰ KIẾN BAN HÀNH MỚI
A79: STT | B79: Các công việc khi thực hiện TTHC | C79: Các hoạt động/ cách thức thực hiện cụ thể | D79: Thời gian thực hiện (giờ) | E79: Mức TNBQ/ 01 giờ làm việc (đồng) | F79: Mức chi phí thuê tư vấn, dịch vụ (đồng) | G79: Mức phí, lệ phí, chi phí khác (đồng) | H79: Số lần thực hiện/ 01 năm | I79: Số lượng đối tượng tuân thủ/01 năm | J79: Chi phí thực hiện TTHC (đồng) | K79: Tổng chi phí thực hiện TTHC/ 01 năm (đồng) | L79: Ghi chú
A80: 1 | B80: Chuẩn bị hồ sơ
B81: Doanh nghiệp chuẩn bị hồ sơ đăng ký kinh doanh có điều kiện, lý lịch tư pháp người chịu trách nhiệm | C81: Chuẩn bị hồ sơ | D81: 16 | E81: 58228 | G81: 0 | H81: 1 | I81: 300 | J81: =G81+F81+(D81*E81) -> 931648 | K81: =J81*I81*H81 -> 279494400
A82: 2 | B82: Nộp hồ sơ | C82: Trực tiếp | D82: 0.5 | E82: 58228 | G82: 0 | H82: 1 | I82: 300 | J82: 29114 | K82: 8734200
C83: Bưu chính | D83: 0 | E83: 58228 | G83: 0 | H83: 1 | I83: 0 | J83: 0 | K83: 0
C84: Điện tử | D84: 0.25 | E84: 58228 | G84: 0 | H84: 1 | I84: 300 | J84: 14557 | K84: 4367100
A85: 3 | B85: Nộp phí, lệ phí, chi phí khác | E85: 58228 | G85: 0 | H85: 1 | I85: 300 | J85: 0 | K85: 0
A86: 3.1 | B86: Phí | D86: 0 | E86: 58228 | G86: 0 | H86: 1 | I86: 300 | J86: 0 | K86: 0
A87: 3.2 | B87: Lệ phí | D87: 0 | E87: 58228 | G87: 0 | H87: 1 | I87: 300 | J87: 0 | K87: 0
A88: 3.3 | B88: Chi phí khác | D88: 0 | E88: 58228 | G88: 0 | H88: 1 | I88: 300 | J88: 0 | K88: 0
A89: 4 | B89: Chuẩn bị, phục vụ việc kiểm tra, đánh giá của cơ quan có thẩm quyền (nếu có) | D89: 0 | E89: 58228 | G89: 0 | H89: 1 | I89: 300 | J89: 0 | K89: 0
A90: 5 | B90: Công việc khác (nếu có) | D90: 0 | E90: 58228 | G90: 0 | H90: 1 | I90: 300 | J90: 0 | K90: 0
A91: 6 | B91: Nhận kết quả | C91: Trực tiếp | D91: 1 | E91: 58228 | G91: 0 | H91: 1 | I91: 300 | J91: 58228 | K91: 17468400
C92: Bưu chính | D92: 0 | E92: 58228 | G92: 0 | H92: 1 | I92: 0 | J92: 0 | K92: 0
C93: Điện tử | D93: 0.1 | E93: 58228 | G93: 0 | H93: 1 | I93: 300 | J93: 5822.8 | K93: 1746840
B94: TỔNG 1.d | F94: =SUM(F80:F90) -> 0 | G94: =SUM(G80:G90) -> 0 | J94: =SUM(J80:J93) -> 1039369.8 | K94: =SUM(K80:K93) -> 311810940
A95: Ghi chú giả định số liệu: Mức phí, lệ phí cụ thể do Bộ Tài chính quy định khi ban hành văn bản hướng dẫn thi hành.
A97: 1.e | B97: (Cấp phép tham gia cơ chế thử nghiệm có kiểm soát (Sandbox))
A98: I. | B98: CHI PHÍ THỰC HIỆN TTHC DỰ KIẾN BAN HÀNH MỚI
A100: STT | B100: Các công việc khi thực hiện TTHC | C100: Các hoạt động/ cách thức thực hiện cụ thể | D100: Thời gian thực hiện (giờ) | E100: Mức TNBQ/ 01 giờ làm việc (đồng) | F100: Mức chi phí thuê tư vấn, dịch vụ (đồng) | G100: Mức phí, lệ phí, chi phí khác (đồng) | H100: Số lần thực hiện/ 01 năm | I100: Số lượng đối tượng tuân thủ/01 năm | J100: Chi phí thực hiện TTHC (đồng) | K100: Tổng chi phí thực hiện TTHC/ 01 năm (đồng) | L100: Ghi chú
A101: 1 | B101: Chuẩn bị hồ sơ
B102: Tổ chức, doanh nghiệp lập hồ sơ đăng ký, thuyết minh kỹ thuật giải pháp và phương án kiểm soát rủi ro | C102: Chuẩn bị hồ sơ | D102: 24 | E102: 58228 | F102: 4000000 | G102: 0 | H102: 1 | I102: 100 | J102: =G102+F102+(D102*E102) -> 5397472 | K102: =J102*I102*H102 -> 539747200
A103: 2 | B103: Nộp hồ sơ | C103: Trực tiếp | D103: 0.5 | E103: 58228 | G103: 0 | H103: 1 | I103: 100 | J103: 29114 | K103: 2911400
C104: Bưu chính | D104: 0 | E104: 58228 | G104: 0 | H104: 1 | I104: 0 | J104: 0 | K104: 0
C105: Điện tử | D105: 0.25 | E105: 58228 | G105: 0 | H105: 1 | I105: 100 | J105: 14557 | K105: 1455700
A106: 3 | B106: Nộp phí, lệ phí, chi phí khác | E106: 58228 | G106: 0 | H106: 1 | I106: 100 | J106: 0 | K106: 0
A107: 3.1 | B107: Phí | D107: 0 | E107: 58228 | G107: 0 | H107: 1 | I107: 100 | J107: 0 | K107: 0
A108: 3.2 | B108: Lệ phí | D108: 0 | E108: 58228 | G108: 0 | H108: 1 | I108: 100 | J108: 0 | K108: 0
A109: 3.3 | B109: Chi phí khác | D109: 0 | E109: 58228 | G109: 0 | H109: 1 | I109: 100 | J109: 0 | K109: 0
A110: 4 | B110: Chuẩn bị, phục vụ việc kiểm tra, đánh giá của cơ quan có thẩm quyền (nếu có) | D110: 0 | E110: 58228 | G110: 0 | H110: 1 | I110: 100 | J110: 0 | K110: 0
A111: 5 | B111: Công việc khác (nếu có) | D111: 0 | E111: 58228 | G111: 0 | H111: 1 | I111: 100 | J111: 0 | K111: 0
A112: 6 | B112: Nhận kết quả | C112: Trực tiếp | D112: 1 | E112: 58228 | G112: 0 | H112: 1 | I112: 100 | J112: 58228 | K112: 5822800
C113: Bưu chính | D113: 0 | E113: 58228 | G113: 0 | H113: 1 | I113: 0 | J113: 0 | K113: 0
C114: Điện tử | D114: 0.1 | E114: 58228 | G114: 0 | H114: 1 | I114: 100 | J114: 5822.8 | K114: 582280
B115: TỔNG 1.e | F115: =SUM(F101:F111) -> 4000000 | G115: =SUM(G101:G111) -> 0 | J115: =SUM(J101:J114) -> 5505193.8 | K115: =SUM(K101:K114) -> 550519380
A116: Ghi chú giả định số liệu: Đã tính chi phí thuê tư vấn xây dựng thuyết minh kỹ thuật khoảng 4.000.000 đồng/hồ sơ.
B118: TỔNG NHÓM (THỦ TỤC 1) | K118: =K31+K52+K73+K94+K115 -> 10523015650
A120: THỦ TỤC HÀNH CHÍNH 2: Chứng nhận, công nhận đạt chuẩn an ninh dữ liệu đối với sản phẩm và nhân lực
A121: 2.a | B121: (Cấp Chứng nhận hợp quy sản phẩm, dịch vụ công nghệ an ninh dữ liệu)
A122: I. | B122: CHI PHÍ THỰC HIỆN TTHC DỰ KIẾN BAN HÀNH MỚI
A124: STT | B124: Các công việc khi thực hiện TTHC | C124: Các hoạt động/ cách thức thực hiện cụ thể | D124: Thời gian thực hiện (giờ) | E124: Mức TNBQ/ 01 giờ làm việc (đồng) | F124: Mức chi phí thuê tư vấn, dịch vụ (đồng) | G124: Mức phí, lệ phí, chi phí khác (đồng) | H124: Số lần thực hiện/ 01 năm | I124: Số lượng đối tượng tuân thủ/01 năm | J124: Chi phí thực hiện TTHC (đồng) | K124: Tổng chi phí thực hiện TTHC/ 01 năm (đồng) | L124: Ghi chú
A125: 1 | B125: Chuẩn bị hồ sơ
B126: Doanh nghiệp chuẩn bị hồ sơ kỹ thuật, kết quả thử nghiệm sản phẩm để đề nghị cấp chứng nhận hợp quy | C126: Chuẩn bị hồ sơ | D126: 24 | E126: 58228 | F126: 5000000 | G126: 0 | H126: 1 | I126: 150 | J126: =G126+F126+(D126*E126) -> 6397472 | K126: =J126*I126*H126 -> 959620800
A127: 2 | B127: Nộp hồ sơ | C127: Trực tiếp | D127: 0.5 | E127: 58228 | G127: 0 | H127: 1 | I127: 150 | J127: 29114 | K127: 4367100
C128: Bưu chính | D128: 0 | E128: 58228 | G128: 0 | H128: 1 | I128: 0 | J128: 0 | K128: 0
C129: Điện tử | D129: 0.25 | E129: 58228 | G129: 0 | H129: 1 | I129: 150 | J129: 14557 | K129: 2183550
A130: 3 | B130: Nộp phí, lệ phí, chi phí khác | E130: 58228 | G130: 0 | H130: 1 | I130: 150 | J130: 0 | K130: 0
A131: 3.1 | B131: Phí | D131: 0 | E131: 58228 | G131: 0 | H131: 1 | I131: 150 | J131: 0 | K131: 0
A132: 3.2 | B132: Lệ phí | D132: 0 | E132: 58228 | G132: 0 | H132: 1 | I132: 150 | J132: 0 | K132: 0
A133: 3.3 | B133: Chi phí khác | D133: 0 | E133: 58228 | G133: 0 | H133: 1 | I133: 150 | J133: 0 | K133: 0
A134: 4 | B134: Chuẩn bị, phục vụ việc kiểm tra, đánh giá của cơ quan có thẩm quyền (nếu có) | D134: 0 | E134: 58228 | G134: 0 | H134: 1 | I134: 150 | J134: 0 | K134: 0
A135: 5 | B135: Công việc khác (nếu có) | D135: 0 | E135: 58228 | G135: 0 | H135: 1 | I135: 150 | J135: 0 | K135: 0
A136: 6 | B136: Nhận kết quả | C136: Trực tiếp | D136: 1 | E136: 58228 | G136: 0 | H136: 1 | I136: 150 | J136: 58228 | K136: 8734200
C137: Bưu chính | D137: 0 | E137: 58228 | G137: 0 | H137: 1 | I137: 0 | J137: 0 | K137: 0
C138: Điện tử | D138: 0.1 | E138: 58228 | G138: 0 | H138: 1 | I138: 150 | J138: 5822.8 | K138: 873420
B139: TỔNG 2.a | F139: =SUM(F125:F135) -> 5000000 | G139: =SUM(G125:G135) -> 0 | J139: =SUM(J125:J138) -> 6505193.8 | K139: =SUM(K125:K138) -> 975779070
A140: Ghi chú giả định số liệu: Đã tính chi phí thuê tổ chức thử nghiệm kỹ thuật độc lập (khoảng 5.000.000 đồng/hồ sơ); mức phí, lệ phí thẩm định cụ thể do Bộ Tài chính quy định.
A142: 2.b | B142: (Cấp, công nhận Chứng chỉ chuyên môn về an ninh dữ liệu)
A143: I. | B143: CHI PHÍ THỰC HIỆN TTHC DỰ KIẾN BAN HÀNH MỚI
A145: STT | B145: Các công việc khi thực hiện TTHC | C145: Các hoạt động/ cách thức thực hiện cụ thể | D145: Thời gian thực hiện (giờ) | E145: Mức TNBQ/ 01 giờ làm việc (đồng) | F145: Mức chi phí thuê tư vấn, dịch vụ (đồng) | G145: Mức phí, lệ phí, chi phí khác (đồng) | H145: Số lần thực hiện/ 01 năm | I145: Số lượng đối tượng tuân thủ/01 năm | J145: Chi phí thực hiện TTHC (đồng) | K145: Tổng chi phí thực hiện TTHC/ 01 năm (đồng) | L145: Ghi chú
A146: 1 | B146: Chuẩn bị hồ sơ
B147: Cá nhân chuẩn bị hồ sơ, tham gia sát hạch hoặc đề nghị công nhận chứng chỉ quốc tế tương đương | C147: Chuẩn bị hồ sơ | D147: 8 | E147: 58228 | G147: 0 | H147: 1 | I147: 15000 | J147: =G147+F147+(D147*E147) -> 465824 | K147: =J147*I147*H147 -> 6987360000
A148: 2 | B148: Nộp hồ sơ | C148: Trực tiếp | D148: 0.5 | E148: 58228 | G148: 0 | H148: 1 | I148: 15000 | J148: 29114 | K148: 436710000
C149: Bưu chính | D149: 0 | E149: 58228 | G149: 0 | H149: 1 | I149: 0 | J149: 0 | K149: 0
C150: Điện tử | D150: 0.25 | E150: 58228 | G150: 0 | H150: 1 | I150: 15000 | J150: 14557 | K150: 218355000
A151: 3 | B151: Nộp phí, lệ phí, chi phí khác | E151: 58228 | G151: 500000 | H151: 1 | I151: 15000 | J151: 500000 | K151: 7500000000
A152: 3.1 | B152: Phí | D152: 0 | E152: 58228 | G152: 0 | H152: 1 | I152: 15000 | J152: 0 | K152: 0
A153: 3.2 | B153: Lệ phí | D153: 0 | E153: 58228 | G153: 500000 | H153: 1 | I153: 15000 | J153: 500000 | K153: 7500000000
A154: 3.3 | B154: Chi phí khác | D154: 0 | E154: 58228 | G154: 0 | H154: 1 | I154: 15000 | J154: 0 | K154: 0
A155: 4 | B155: Chuẩn bị, phục vụ việc kiểm tra, đánh giá của cơ quan có thẩm quyền (nếu có) | D155: 0 | E155: 58228 | G155: 0 | H155: 1 | I155: 15000 | J155: 0 | K155: 0
A156: 5 | B156: Công việc khác (nếu có) | D156: 0 | E156: 58228 | G156: 0 | H156: 1 | I156: 15000 | J156: 0 | K156: 0
A157: 6 | B157: Nhận kết quả | C157: Trực tiếp | D157: 0 | E157: 58228 | G157: 0 | H157: 1 | I157: 15000 | J157: 0 | K157: 0
C158: Bưu chính | D158: 0 | E158: 58228 | G158: 0 | H158: 1 | I158: 0 | J158: 0 | K158: 0
C159: Điện tử | D159: 0.1 | E159: 58228 | G159: 0 | H159: 1 | I159: 15000 | J159: 5822.8 | K159: 87342000
B160: TỔNG 2.b | F160: =SUM(F146:F156) -> 0 | G160: =SUM(G146:G156) -> 1000000 | J160: =SUM(J146:J159) -> 1515317.8 | K160: =SUM(K146:K159) -> 22729767000
A161: Ghi chú giả định số liệu: Ước tính theo số nhân sự vận hành hệ thống Cấp độ 3, 4 trên toàn quốc cần hoàn thiện chứng chỉ trong giai đoạn chuyển tiếp; đã tính lệ phí sát hạch khoảng 500.000 đồng/người, được miễn nếu có chứng chỉ quốc tế tương đương.
B163: TỔNG NHÓM (THỦ TỤC 2) | K163: =K139+K160 -> 23705546070
A165: THỦ TỤC HÀNH CHÍNH 3: Phê duyệt ngoại lệ đặc biệt đối với dữ liệu Cốt lõi, Quan trọng
A166: 3.a | B166: (Cấp phép giao dịch, mua bán dữ liệu Cốt lõi, Quan trọng trong trường hợp đặc biệt)
A167: I. | B167: CHI PHÍ THỰC HIỆN TTHC DỰ KIẾN BAN HÀNH MỚI
A169: STT | B169: Các công việc khi thực hiện TTHC | C169: Các hoạt động/ cách thức thực hiện cụ thể | D169: Thời gian thực hiện (giờ) | E169: Mức TNBQ/ 01 giờ làm việc (đồng) | F169: Mức chi phí thuê tư vấn, dịch vụ (đồng) | G169: Mức phí, lệ phí, chi phí khác (đồng) | H169: Số lần thực hiện/ 01 năm | I169: Số lượng đối tượng tuân thủ/01 năm | J169: Chi phí thực hiện TTHC (đồng) | K169: Tổng chi phí thực hiện TTHC/ 01 năm (đồng) | L169: Ghi chú
A170: 1 | B170: Chuẩn bị hồ sơ
B171: Tổ chức, cá nhân lập hồ sơ đề nghị, kèm thỏa thuận giao dịch dự kiến và đánh giá tác động an ninh liên quan | C171: Chuẩn bị hồ sơ | D171: 40 | E171: 58228 | F171: 10000000 | G171: 0 | H171: 1 | I171: 10 | J171: =G171+F171+(D171*E171) -> 12329120 | K171: =J171*I171*H171 -> 123291200
A172: 2 | B172: Nộp hồ sơ | C172: Trực tiếp | D172: 0.5 | E172: 58228 | G172: 0 | H172: 1 | I172: 10 | J172: 29114 | K172: 291140
C173: Bưu chính | D173: 0 | E173: 58228 | G173: 0 | H173: 1 | I173: 0 | J173: 0 | K173: 0
C174: Điện tử | D174: 0.25 | E174: 58228 | G174: 0 | H174: 1 | I174: 10 | J174: 14557 | K174: 145570
A175: 3 | B175: Nộp phí, lệ phí, chi phí khác | E175: 58228 | G175: 0 | H175: 1 | I175: 10 | J175: 0 | K175: 0
A176: 3.1 | B176: Phí | D176: 0 | E176: 58228 | G176: 0 | H176: 1 | I176: 10 | J176: 0 | K176: 0
A177: 3.2 | B177: Lệ phí | D177: 0 | E177: 58228 | G177: 0 | H177: 1 | I177: 10 | J177: 0 | K177: 0
A178: 3.3 | B178: Chi phí khác | D178: 0 | E178: 58228 | G178: 0 | H178: 1 | I178: 10 | J178: 0 | K178: 0
A179: 4 | B179: Chuẩn bị, phục vụ việc kiểm tra, đánh giá của cơ quan có thẩm quyền (nếu có) | D179: 0 | E179: 58228 | G179: 0 | H179: 1 | I179: 10 | J179: 0 | K179: 0
A180: 5 | B180: Công việc khác (nếu có) | D180: 0 | E180: 58228 | G180: 0 | H180: 1 | I180: 10 | J180: 0 | K180: 0
A181: 6 | B181: Nhận kết quả | C181: Trực tiếp | D181: 2 | E181: 58228 | G181: 0 | H181: 1 | I181: 10 | J181: 116456 | K181: 1164560
C182: Bưu chính | D182: 0 | E182: 58228 | G182: 0 | H182: 1 | I182: 0 | J182: 0 | K182: 0
C183: Điện tử | D183: 0.1 | E183: 58228 | G183: 0 | H183: 1 | I183: 10 | J183: 5822.8 | K183: 58228
B184: TỔNG 3.a | F184: =SUM(F170:F180) -> 10000000 | G184: =SUM(G170:G180) -> 0 | J184: =SUM(J170:J183) -> 12495069.8 | K184: =SUM(K170:K183) -> 124950698
A185: Ghi chú giả định số liệu: Thủ tục hiếm gặp, tính chất phức tạp; đã tính chi phí thuê tư vấn pháp lý, kỹ thuật khoảng 10.000.000 đồng/hồ sơ.
A187: 3.b | B187: (Phê duyệt của Thủ tướng Chính phủ đối với trường hợp đặc biệt xử lý dữ liệu Cốt lõi)
A188: I. | B188: CHI PHÍ THỰC HIỆN TTHC DỰ KIẾN BAN HÀNH MỚI
A190: STT | B190: Các công việc khi thực hiện TTHC | C190: Các hoạt động/ cách thức thực hiện cụ thể | D190: Thời gian thực hiện (giờ) | E190: Mức TNBQ/ 01 giờ làm việc (đồng) | F190: Mức chi phí thuê tư vấn, dịch vụ (đồng) | G190: Mức phí, lệ phí, chi phí khác (đồng) | H190: Số lần thực hiện/ 01 năm | I190: Số lượng đối tượng tuân thủ/01 năm | J190: Chi phí thực hiện TTHC (đồng) | K190: Tổng chi phí thực hiện TTHC/ 01 năm (đồng) | L190: Ghi chú
A191: 1 | B191: Chuẩn bị hồ sơ
B192: Cơ quan chủ quản lập hồ sơ trình Thủ tướng Chính phủ, kèm ý kiến thẩm định của Bộ Công an/Bộ Quốc phòng | C192: Chuẩn bị hồ sơ | D192: 40 | E192: 58228 | G192: 0 | H192: 1 | I192: 5 | J192: =G192+F192+(D192*E192) -> 2329120 | K192: =J192*I192*H192 -> 11645600
A193: 2 | B193: Nộp hồ sơ | C193: Trực tiếp | D193: 0.5 | E193: 58228 | G193: 0 | H193: 1 | I193: 5 | J193: 29114 | K193: 145570
C194: Bưu chính | D194: 0 | E194: 58228 | G194: 0 | H194: 1 | I194: 0 | J194: 0 | K194: 0
C195: Điện tử | D195: 0.25 | E195: 58228 | G195: 0 | H195: 1 | I195: 5 | J195: 14557 | K195: 72785
A196: 3 | B196: Nộp phí, lệ phí, chi phí khác | E196: 58228 | G196: 0 | H196: 1 | I196: 5 | J196: 0 | K196: 0
A197: 3.1 | B197: Phí | D197: 0 | E197: 58228 | G197: 0 | H197: 1 | I197: 5 | J197: 0 | K197: 0
A198: 3.2 | B198: Lệ phí | D198: 0 | E198: 58228 | G198: 0 | H198: 1 | I198: 5 | J198: 0 | K198: 0
A199: 3.3 | B199: Chi phí khác | D199: 0 | E199: 58228 | G199: 0 | H199: 1 | I199: 5 | J199: 0 | K199: 0
A200: 4 | B200: Chuẩn bị, phục vụ việc kiểm tra, đánh giá của cơ quan có thẩm quyền (nếu có) | D200: 0 | E200: 58228 | G200: 0 | H200: 1 | I200: 5 | J200: 0 | K200: 0
A201: 5 | B201: Công việc khác (nếu có) | D201: 0 | E201: 58228 | G201: 0 | H201: 1 | I201: 5 | J201: 0 | K201: 0
A202: 6 | B202: Nhận kết quả | C202: Trực tiếp | D202: 2 | E202: 58228 | G202: 0 | H202: 1 | I202: 5 | J202: 116456 | K202: 582280
C203: Bưu chính | D203: 0 | E203: 58228 | G203: 0 | H203: 1 | I203: 0 | J203: 0 | K203: 0
C204: Điện tử | D204: 0.1 | E204: 58228 | G204: 0 | H204: 1 | I204: 5 | J204: 5822.8 | K204: 29114
B205: TỔNG 3.b | F205: =SUM(F191:F201) -> 0 | G205: =SUM(G191:G201) -> 0 | J205: =SUM(J191:J204) -> 2495069.8 | K205: =SUM(K191:K204) -> 12475349
A206: Ghi chú giả định số liệu: Thủ tục áp dụng cho số lượng rất hạn chế trường hợp đặc biệt phục vụ lợi ích tối cao quốc gia.
B208: TỔNG NHÓM (THỦ TỤC 3) | K208: =K184+K205 -> 137426047
A210: THỦ TỤC HÀNH CHÍNH 4: Thẩm định, cấp văn bản chấp thuận an ninh khi chuyển dữ liệu Quan trọng, Cốt lõi ra nước ngoài
A211: 4.a | B211: (Thẩm định, cấp văn bản chấp thuận an ninh khi chuyển dữ liệu Quan trọng, Cốt lõi ra nước ngoài)
A212: I. | B212: CHI PHÍ THỰC HIỆN TTHC DỰ KIẾN BAN HÀNH MỚI
A214: STT | B214: Các công việc khi thực hiện TTHC | C214: Các hoạt động/ cách thức thực hiện cụ thể | D214: Thời gian thực hiện (giờ) | E214: Mức TNBQ/ 01 giờ làm việc (đồng) | F214: Mức chi phí thuê tư vấn, dịch vụ (đồng) | G214: Mức phí, lệ phí, chi phí khác (đồng) | H214: Số lần thực hiện/ 01 năm | I214: Số lượng đối tượng tuân thủ/01 năm | J214: Chi phí thực hiện TTHC (đồng) | K214: Tổng chi phí thực hiện TTHC/ 01 năm (đồng) | L214: Ghi chú
A215: 1 | B215: Chuẩn bị hồ sơ
B216: Tổ chức lập hồ sơ đề nghị, kèm hợp đồng/thỏa thuận chuyển dữ liệu và đánh giá tác động an ninh dữ liệu xuyên biên giới | C216: Chuẩn bị hồ sơ | D216: 24 | E216: 58228 | F216: 5000000 | G216: 0 | H216: 1 | I216: 200 | J216: =G216+F216+(D216*E216) -> 6397472 | K216: =J216*I216*H216 -> 1279494400
A217: 2 | B217: Nộp hồ sơ | C217: Trực tiếp | D217: 0.5 | E217: 58228 | G217: 0 | H217: 1 | I217: 200 | J217: 29114 | K217: 5822800
C218: Bưu chính | D218: 0 | E218: 58228 | G218: 0 | H218: 1 | I218: 0 | J218: 0 | K218: 0
C219: Điện tử | D219: 0.25 | E219: 58228 | G219: 0 | H219: 1 | I219: 200 | J219: 14557 | K219: 2911400
A220: 3 | B220: Nộp phí, lệ phí, chi phí khác | E220: 58228 | G220: 0 | H220: 1 | I220: 200 | J220: 0 | K220: 0
A221: 3.1 | B221: Phí | D221: 0 | E221: 58228 | G221: 0 | H221: 1 | I221: 200 | J221: 0 | K221: 0
A222: 3.2 | B222: Lệ phí | D222: 0 | E222: 58228 | G222: 0 | H222: 1 | I222: 200 | J222: 0 | K222: 0
A223: 3.3 | B223: Chi phí khác | D223: 0 | E223: 58228 | G223: 0 | H223: 1 | I223: 200 | J223: 0 | K223: 0
A224: 4 | B224: Chuẩn bị, phục vụ việc kiểm tra, đánh giá của cơ quan có thẩm quyền (nếu có) | D224: 0 | E224: 58228 | G224: 0 | H224: 1 | I224: 200 | J224: 0 | K224: 0
A225: 5 | B225: Công việc khác (nếu có) | D225: 0 | E225: 58228 | G225: 0 | H225: 1 | I225: 200 | J225: 0 | K225: 0
A226: 6 | B226: Nhận kết quả | C226: Trực tiếp | D226: 1 | E226: 58228 | G226: 0 | H226: 1 | I226: 200 | J226: 58228 | K226: 11645600
C227: Bưu chính | D227: 0 | E227: 58228 | G227: 0 | H227: 1 | I227: 0 | J227: 0 | K227: 0
C228: Điện tử | D228: 0.1 | E228: 58228 | G228: 0 | H228: 1 | I228: 200 | J228: 5822.8 | K228: 1164560
B229: TỔNG 4.a | F229: =SUM(F215:F225) -> 5000000 | G229: =SUM(G215:G225) -> 0 | J229: =SUM(J215:J228) -> 6505193.8 | K229: =SUM(K215:K228) -> 1301038760
... 99 more rows

Sheet Tổng hợp
A1: BẢNG TỔNG HỢP CHI PHÍ TUÂN THỦ THỦ TỤC HÀNH CHÍNH
A2: DỰ THẢO LUẬT AN NINH DỮ LIỆU (05 nhóm thủ tục hành chính)
A4: STT | B4: Tên thủ tục hành chính | C4: Chi phí tuân thủ dự kiến/năm (đồng) | D4: Tỷ trọng (%) | E4: Xếp hạng | F4: Ghi chú
A5: 1 | B5: Thẩm định, cấp phép hệ thống, công nghệ và dịch vụ dữ liệu trước khi triển khai | C5: ='Chi phí dự kiến'!K118 -> 10523015650 | D5: =C5/$C$10 -> 0.2785489215 | E5: =RANK(C5,$C$5:$C$9) -> 2
A6: 2 | B6: Chứng nhận, công nhận đạt chuẩn an ninh dữ liệu đối với sản phẩm và nhân lực | C6: ='Chi phí dự kiến'!K163 -> 23705546070 | D6: =C6/$C$10 -> 0.6274963862 | E6: =RANK(C6,$C$5:$C$9) -> 1
A7: 3 | B7: Phê duyệt ngoại lệ đặc biệt đối với dữ liệu Cốt lõi, Quan trọng | C7: ='Chi phí dự kiến'!K208 -> 137426047 | D7: =C7/$C$10 -> 0.003637728809 | E7: =RANK(C7,$C$5:$C$9) -> 5
A8: 4 | B8: Thẩm định, cấp văn bản chấp thuận an ninh khi chuyển dữ liệu Quan trọng, Cốt lõi ra nước ngoài | C8: ='Chi phí dự kiến'!K295 -> 2761148990 | D8: =C8/$C$10 -> 0.07308884629 | E8: =RANK(C8,$C$5:$C$9) -> 3
A9: 5 | B9: Quy trình báo cáo và xác nhận khôi phục kết nối sau sự cố an ninh dữ liệu | C9: ='Chi phí dự kiến'!K340 -> 650843470 | D9: =C9/$C$10 -> 0.01722811718 | E9: =RANK(C9,$C$5:$C$9) -> 4
A10: TỔNG CỘNG | C10: =SUM(C5:C9) -> 37777980227 | D10: 1
A12: Ghi chú: Thủ tục 2 (Chứng nhận, công nhận đạt chuẩn sản phẩm và nhân lực) chiếm tỷ trọng chi phí lớn nhất (62,7%), chủ yếu do cấu phần chứng chỉ chuyên môn áp dụng cho quy mô lớn nhân sự vận hành hệ thống Cấp độ 3, Cấp độ 4 trên toàn quốc; Thủ tục 1 (Thẩm định, cấp phép hệ thống, công nghệ và dịch vụ dữ liệu trước khi triển khai) đứng thứ hai (27,9%) do chi phí tư vấn kỹ thuật cao. Đây là 02 nhóm cần ưu tiên áp dụng phương án giảm chi phí tuân thủ (công nhận chứng chỉ quốc tế, lộ trình chuyển tiếp, cơ chế một cửa liên thông) đã đề xuất tại Bản đánh giá thủ tục hành chính.
